Cogmind - Beta 14 @@@ ROGUE MODE // 2025.04.30 @ 22:42:08 Player: jumpy Result: Self-destructed Performance ------------- Evolutions (3) 1500 Regions Visited (6) 1200 Robots Destroyed (33) 165 Value Destroyed (582) 582 Prototype IDs (23) 460 Alien Tech Used (0) 0 Bonus (300) 300 TOTAL SCORE: 4207 Bonus ------- Aligned with FarCom 300 Cogmind --------- Core Integrity 668/700 Matter 21/300 Energy 125/125 System Corruption 4% Temperature Cool (45) Movement Walking (122) Location -7/Factory Parts ------- > --- POWER (1) -------- Light Ion Engine (fused) > --- PROPULSION (4) --- Aluminum Leg Aluminum Leg Carbon-fiber Leg Titanium Leg > --- UTILITY (6) ------ Large Storage Unit Advanced Targeting Computer Improved Utility Shielding Hardened Medium Armor Plating Trap Reconfigurator > --- WEAPON (2) ------- Small Laser Rocket Launcher > --- INVENTORY (15) --- Light Ion Engine Aluminum Leg Wheel Weight Redist. System Improved Utility Shielding Assault Rifle Heavy Assault Rifle Slug Cannon Mining Laser Great Maul Peak State ------------ > --- POWER ------------ Light Ion Engine > --- PROPULSION ------- Aluminum Leg Aluminum Leg Carbon-fiber Leg Titanium Leg > --- UTILITY ---------- Large Storage Unit Advanced Targeting Computer Improved Utility Shielding Hardened Medium Armor Plating Trap Reconfigurator > --- WEAPON ----------- Small Laser Slug Cannon > --- INVENTORY -------- Light Ion Engine Aluminum Leg Wheel Weight Redist. System Improved Utility Shielding Assault Rifle Heavy Assault Rifle Rocket Launcher Mining Laser Great Maul [Rating: 34] Favorites ----------- Power Light Ion Engine Engine Light Ion Engine Propulsion Aluminum Leg Leg Aluminum Leg Utility Large Storage Unit Device Seismic Detector Storage Large Storage Unit Processor Advanced Targeting Computer Protection Improved Utility Shielding Weapon Assault Rifle Energy Gun Small Laser Ballistic Gun Assault Rifle Ballistic Cannon Slug Cannon Launcher Rocket Launcher Special Weapon Mining Laser Build | -11 -10 -10 -10 -9 -8 -7 ------- Run | Yrd Mat Min Exi Min Mat Fac Slots Evolved 6 | . . . . . 4 2 Power . | . . . . . . . Propulsion 2 | . . . . . 2 . Utility 4 | . . . . . 2 2 Weapon . | . . . . . . . Parts Attached 31 | 7 1 1 . 8 10 4 Power 3 | 1 . 1 . 1 . . Engine 3 | 1 . 1 . 1 . . Core . | . . . . . . . Reactor . | . . . . . . . Propulsion 8 | 2 . . . 1 5 . Treads . | . . . . . . . Leg 8 | 2 . . . 1 5 . Wheel . | . . . . . . . Hover . | . . . . . . . Flight . | . . . . . . . Utility 9 | 2 1 . . . 4 2 Device 3 | 1 . . . . . 2 Storage 2 | 1 1 . . . . . Processor 2 | . . . . . 2 . Hackware . | . . . . . . . Protection 2 | . . . . . 2 . Artifact . | . . . . . . . Weapon 11 | 2 . . . 6 1 2 Energy Gun 4 | . . . . 3 1 . Energy Cannon . | . . . . . . . Ballistic Gun 3 | 2 . . . 1 . . Ballistic Cannon 2 | . . . . 1 . 1 Launcher 1 | . . . . . . 1 Special Weapon 1 | . . . . 1 . . Impact Weapon . | . . . . . . . Slashing Weapon . | . . . . . . . Piercing Weapon . | . . . . . . . Special Melee Weapon . | . . . . . . . Unidentified Prototypes . | . . . . . . . Parts Lost 3 | . . . . 2 1 . Power 1 | . . . . 1 . . Propulsion 1 | . . . . . 1 . Utility 1 | . . . . 1 . . Weapon . | . . . . . . . Highest Loss Streak 2 | . . . . 2 1 . To Critical Strikes . | . . . . . . . Average Slot Usage (%) 93 | . 100 100 100 90 91 91 Engine 12 | . 14 14 14 13 9 7 Leg 29 | . 28 28 28 28 35 30 Device 7 | . 14 14 14 4 . 6 Storage 12 | . 14 14 14 14 9 7 Processor 2 | . . . . . 8 7 Protection 3 | . . . . . 11 15 Energy Gun 6 | . . . . 9 9 7 Ballistic Gun 15 | . 28 28 28 16 . . Ballistic Cannon 2 | . . . . 1 9 6 Peak Build Rating 34 | 7 7 7 8 11 26 34 Average Rating 12 | 6 7 7 7 7 20 33 On Entrance 9 | . 7 7 7 8 11 26 Naked Turns . | . . . . . . . Heaviest Build 42 | 13 28 28 28 31 41 42 Greatest Support 52 | 20 20 20 20 20 52 52 Greatest Overweight (x) 1 | 1 1 1 1 1 1 . Average Overweight (x) . | . . 1 1 1 . . Largest Inventory Capacity 15 | 8 15 15 15 15 15 15 Average Capacity 14 | 7 14 15 15 15 15 15 Most Carried 11 | 4 5 6 6 10 11 11 Average Carried 6 | 3 4 4 5 6 9 10 Final Capacity 15 | 8 15 15 15 15 15 15 Final Carried 11 | 4 4 5 6 10 11 10 Class Distribution -------------------- 92% | Mutant 7% | Scavenger-Mutant Dominant Class ---------------- Mutant | -10/Materials Mutant | -10/Mines Mutant | -10/Exiles Mutant | -9/Mines Scavenger-Mutant | -8/Materials Mutant | -7/Factory Resources | -11 -10 -10 -10 -9 -8 -7 ----------- Run | Yrd Mat Min Exi Min Mat Fac Matter Collected 694 | 396 . 57 . 182 59 . Remotely . | . . . . . . . Salvage Created 861 | 246 23 57 . 257 173 105 Parts 71 | 25 3 4 . 25 10 4 Haulers Intercepted . | . . . . . . . Recyclers Shooed . | . . . . . . . Parts Field Recycled . | . . . . . . . Retrieved Matter . | . . . . . . . Parts Self-Destructed . | . . . . . . . Prevented . | . . . . . . . Kills | -11 -10 -10 -10 -9 -8 -7 ------- Run | Yrd Mat Min Exi Min Mat Fac Combat Hostiles Destroyed 14 | . . 3 . 4 3 4 Guns 8 | . . 3 . 4 . 1 Cannons 3 | . . . . . 3 . AOE 3 | . . . . . . 3 Classes Destroyed 9 | 2 1 1 . 2 2 1 Worker 3 | . . . . 3 . . Tunneler 13 | 9 . . . 3 1 . Recycler 2 | 1 . . . . 1 . Watcher 1 | . 1 . . . . . Swarmer 6 | . . 3 . 2 . 1 Grunt 5 | . . . . 2 1 2 Brawler 1 | . . . . . 1 . Duelist 1 | . . . . . . 1 Sentry 1 | . . . . . 1 . Best Kill Streak 4 | 4 1 3 . 2 3 4 Combat Bots Only 4 | . . 3 . 2 1 4 Max Kills in Single Turn 2 | 1 1 1 . 1 1 2 Gunslinging . | . . . . . . . Exploded 2 | . . . . . . 2 Melee . | . . . . . . . Uniques/NPCs Destroyed . | . . . . . . . Combat | -11 -10 -10 -10 -9 -8 -7 -------- Run | Yrd Mat Min Exi Min Mat Fac Hostile Shots Fired 114 | . . 29 . 24 12 49 Missed 28 | . . 3 . 5 3 17 Damage Taken 1503 | . . 208 . 430 296 569 Core 329 | . . 12 . 156 129 32 Absorbed by Shields . | . . . . . . . Redirected to Shielding 3 | . . . . . . 3 Core Remaining (%) 69 | 100 . . . 32 76 . Volleys Fired 84 | 21 1 9 . 28 18 7 Largest 2 | 2 2 2 . 2 2 2 Hottest 100 | 40 40 40 . 100 88 88 Shots Fired 149 | 42 2 18 . 49 23 15 Gun 117 | 42 2 18 . 43 5 7 Cannon 22 | . . . . . 18 4 Launcher 4 | . . . . . . 4 Special 6 | . . . . 6 . . Kinetic 107 | 42 2 18 . 23 18 4 Thermal 38 | . . . . 26 5 7 Explosive 4 | . . . . . . 4 Electromagnetic . | . . . . . . . Robot Hit Streak 8 | 8 2 3 . 7 4 2 Robot Miss Streak 5 | 4 . 5 . 3 3 4 Penetration Max . | . . . . . . . Secondary Targets 1 | . . 1 . . . . Max Gunslinging Chain 1 | . . 1 . . . . Shots Hit Robots 72 | 22 1 5 . 25 14 5 Core Hits 44 | 10 1 3 . 13 5 12 Critical Kills 1 | . . . . . 1 . Critical Parts Destroyed 2 | . . . . . 2 . Critical Strikes 4 | . . . . . 4 . Destroy 4 | . . . . . 4 . Melee Attacks . | . . . . . . . Impact . | . . . . . . . Slashing . | . . . . . . . Piercing . | . . . . . . . Sneak Attacks . | . . . . . . . Combat Hostiles . | . . . . . . . Follow-up Attacks . | . . . . . . . Damage Inflicted 1640 | 270 13 56 . 335 605 361 Guns 727 | 270 13 56 . 335 11 42 Cannons 393 | . . . . . 393 . Explosions 520 | . . . . . 201 319 Melee . | . . . . . . . Ramming . | . . . . . . . Kinetic 959 | 270 13 56 . 227 393 . Thermal 362 | . . . . 108 212 42 Explosive 319 | . . . . . . 319 Electromagnetic . | . . . . . . . Impact . | . . . . . . . Slashing . | . . . . . . . Piercing . | . . . . . . . Highest Corruption 8 | . . . . 8 1 4 Average Corruption 5 | . . . . 8 1 3 Corruption Purged . | . . . . . . . Corruption Blocked . | . . . . . . . Effects 33 | . . . . 23 2 8 Message Errors 7 | . . . . 5 . 2 Matter Fused 6 | . . . . 3 1 2 Heat Flow Errors 5 | . . . . 4 . 1 Energy Discharges 3 | . . . . 2 1 . Parts Fused 2 | . . . . 1 . 1 Data Loss (minor) 4 | . . . . 3 . 1 Data Loss (major) 4 | . . . . 4 . . Misfires 2 | . . . . 1 . 1 Overload Shots . | . . . . . . . Overflow Damage 48 | . . . . . 48 . Projectiles . | . . . . . . . Explosions 48 | . . . . . 48 . Melee . | . . . . . . . Knockbacks . | . . . . . . . Impact . | . . . . . . . Kinetic . | . . . . . . . Secondary . | . . . . . . . Self-Inflicted Damage 190 | . . . . . 100 90 Shots 4 | . . . . . 1 3 Rammed . | . . . . . . . Targets Rammed . | . . . . . . . Kicked . | . . . . . . . Crushed . | . . . . . . . Highest Temperature 247 | . . . . 232 35 247 Average Temperature 62 | . . . . 80 17 62 Received Heat Transfer 177 | . . . . 78 54 45 Effects 2 | . . . . 2 . . Interference 2 | . . . . 2 . . Siege Activations . | . . . . . . . Robots Corrupted . | . . . . . . . Combat Hostiles . | . . . . . . . Parts Fried . | . . . . . . . Impact Corruptions . | . . . . . . . Robots Melted . | . . . . . . . Combat Hostiles . | . . . . . . . Parts Melted 1 | . . . . 1 . . Heat Transferred 475 | . . . . 250 125 100 Parts Sabotaged . | . . . . . . . Parts Stolen . | . . . . . . . Parts Stripped . | . . . . . . . Power Chain Reactions . | . . . . . . . Alert | -11 -10 -10 -10 -9 -8 -7 ------- Run | Yrd Mat Min Exi Min Mat Fac Peak Influence 199 | 50 39 85 . 120 199 137 Initial 32 | . 32 15 . . 2 . Average 33 | 21 34 32 . 20 80 25 Maximum Alert Level . | . . . . . . . Low Security (%) 100 | 100 100 100 . 100 100 100 Level 1 . | . . . . . . . Level 2 . | . . . . . . . Level 3 . | . . . . . . . Level 4 . | . . . . . . . Level 5 . | . . . . . . . High Security . | . . . . . . . Max Security . | . . . . . . . Squads Dispatched 4 | . 2 . . . . 2 Investigation 2 | . 1 . . . . 1 Extermination . | . . . . . . . Reinforcement 1 | . 1 . . . . . Assault . | . . . . . . . Garrison 1 | . . . . . . 1 Intercept . | . . . . . . . Searches Triggered . | . . . . . . . Construction Impeded . | . . . . . . . Haulers Reinforced . | . . . . . . . Active Scanning Responses . | . . . . . . . Cargo Convoy Interrupts . | . . . . . . . Stealth | -11 -10 -10 -10 -9 -8 -7 --------- Run | Yrd Mat Min Exi Min Mat Fac Distress Signals 1 | . . . . . . 1 Communications Jammed . | . . . . . . . Distress Signals . | . . . . . . . Times Spotted 26 | . 1 3 . 5 7 10 Peak Tracking Total 8 | . 2 3 . 2 3 8 Tactical Retreats 4 | . . . . 1 2 1 Traps | -11 -10 -10 -10 -9 -8 -7 ------- Run | Yrd Mat Min Exi Min Mat Fac Traps Triggered 3 | . 1 . . . . 2 Indirectly . | . . . . . . . Trap Hack Attempts . | . . . . . . . Triggered . | . . . . . . . Disarmed . | . . . . . . . Reprogrammed . | . . . . . . . Reused . | . . . . . . . Traps Reconfigurated 2 | . . . . . . 2 Traps Extracted . | . . . . . . . Installed . | . . . . . . . Triggered . | . . . . . . . Machines | -11 -10 -10 -10 -9 -8 -7 ---------- Run | Yrd Mat Min Exi Min Mat Fac Machines Disabled 3 | . . . . . 1 2 Max in Single Turn 1 | . . . . . 1 1 Machines Repaired . | . . . . . . . Machines Dismantled . | . . . . . . . Machines Sabotaged . | . . . . . . . Overloaded Fab Kills . | . . . . . . . Hacking | -11 -10 -10 -10 -9 -8 -7 --------- Run | Yrd Mat Min Exi Min Mat Fac Machines Accessed 3 | . . . 1 . . 2 Terminals . | . . . . . . . Fabricators . | . . . . . . . Repair Stations . | . . . . . . . Recycling Units . | . . . . . . . Scanalyzers 1 | . . . . . . 1 Garrison Access 1 | . . . . . . 1 Total Hacks 8 | . . . 1 . . 7 Successful 3 | . . . 1 . . 2 Failed 5 | . . . . . . 5 Catastrophic 3 | . . . . . . 3 Database Lockouts . | . . . . . . . Manual 1 | . . . 1 . . . Terminals . | . . . . . . . Fabricators . | . . . . . . . Repair Stations . | . . . . . . . Recycling Units . | . . . . . . . Scanalyzers 4 | . . . . . . 4 Garrison Access 3 | . . . . . . 3 Terminal Hacks 1 | . . . 1 . . . Derelict Proto ID Bank 1 | . . . 1 . . . Fabricator Hacks . | . . . . . . . Repair Station Hacks . | . . . . . . . Recycling Unit Hacks . | . . . . . . . Scanalyzer 2 | . . . . . . 2 Insert Component 1 | . . . . . . 1 Analyze 1 | . . . . . . 1 Garrison Access Hacks . | . . . . . . . Unauthorized Hacks . | . . . . . . . Terminals . | . . . . . . . Fabricators . | . . . . . . . Repair Stations . | . . . . . . . Recycling Units . | . . . . . . . Scanalyzers . | . . . . . . . Garrison Access . | . . . . . . . Data Cores Recovered . | . . . . . . . Used . | . . . . . . . Hacking Detections 2 | . . . . . . 2 Full Trace Events 1 | . . . . . . 1 Feedback Events . | . . . . . . . Feedback Blocked . | . . . . . . . Robot Schematics Acquired . | . . . . . . . Robots Built . | . . . . . . . Authchips . | . . . . . . . Time . | . . . . . . . Total Robot Build Rating . | . . . . . . . Part Schematics Acquired 1 | . . . . . . 1 Parts Built . | . . . . . . . Authchips . | . . . . . . . Time . | . . . . . . . Total Part Build Rating . | . . . . . . . Parts Repaired . | . . . . . . . Time . | . . . . . . . Parts Recycled . | . . . . . . . Recycled Matter . | . . . . . . . Retrieved Matter . | . . . . . . . Retrieved Components . | . . . . . . . Parts Scanalyzed 1 | . . . . . . 1 Part Schematics Acquired 1 | . . . . . . 1 Parts Damaged . | . . . . . . . Bothacking | -11 -10 -10 -10 -9 -8 -7 ------------ Run | Yrd Mat Min Exi Min Mat Fac Used RIF Installer . | . . . . . . . Robots Hacked . | . . . . . . . Non-combat . | . . . . . . . Combat . | . . . . . . . Robot Hacks Applied . | . . . . . . . Relay Couplers Released . | . . . . . . . Fabnet Peak Effective % . | . . . . . . . Robots Rewired . | . . . . . . . Allies Hacked . | . . . . . . . Hacks Repelled . | . . . . . . . Allies | -11 -10 -10 -10 -9 -8 -7 -------- Run | Yrd Mat Min Exi Min Mat Fac Total Allies . | . . . . . . . Largest Group . | . . . . . . . Highest-Rated Group . | . . . . . . . Highest-Rated Ally . | . . . . . . . Total Orders . | . . . . . . . Ally Attacks . | . . . . . . . Total Damage . | . . . . . . . Kills . | . . . . . . . Allies Corrupted . | . . . . . . . Allies Melted . | . . . . . . . Intel | -11 -10 -10 -10 -9 -8 -7 ------- Run | Yrd Mat Min Exi Min Mat Fac Robot Analysis Total . | . . . . . . . Derelict Logs Recovered . | . . . . . . . Drone Launches . | . . . . . . . Drone Recoveries . | . . . . . . . Exploration | -11 -10 -10 -10 -9 -8 -7 ------------- Run | Yrd Mat Min Exi Min Mat Fac Turns Passed 3599 | 309 76 560 446 1251 523 434 Spaces Moved 1744 | 203 41 218 235 572 345 130 Core 21 | 21 . . . . . . Treads . | . . . . . . . Legs 1723 | 182 41 218 235 572 345 130 Wheels . | . . . . . . . Hover . | . . . . . . . Flight . | . . . . . . . Fastest Speed 50 | 50 120 190 190 190 120 122 Average Speed 163 | 113 176 190 190 190 125 122 Slowest Speed 190 | 120 190 190 190 190 190 122 Overloaded Moves . | . . . . . . . Propulsion Burnouts . | . . . . . . . Robots Hopped . | . . . . . . . Cave-ins Triggered 1 | . . . . 1 . . Exploration Rate (%) 33 | 6 14 41 63 77 26 4 Regions Visited 6 Branch Regions 3 Pre-discovered Areas . | . . . . . . . Known Exits Taken . | . . . . . . . Unknown Exits Taken 6 | 1 1 1 1 1 1 . Scrap Searched 1 | . . . . 1 . . Spaces Dug 6 | . . . . 6 . . Terrain Destroyed 48 | . . . . 6 40 2 Melee . | . . . . . . . Projectile 10 | . . . . 6 2 2 AOE 38 | . . . . . 38 . Terrain Rammed . | . . . . . . . Walls Destroyed . | . . . . . . . Machines Disabled . | . . . . . . . Actions | -11 -10 -10 -10 -9 -8 -7 --------- Run | Yrd Mat Min Exi Min Mat Fac Total 2332 | 235 43 346 235 674 408 391 Wait 458 | 1 . 117 . 61 31 248 Move 1737 | 202 40 217 234 570 344 130 Hop . | . . . . . . . Pick Up 13 | 4 . 1 1 4 3 . Fast Attach 11 | 7 . . . . 4 . Attach 7 | . . . . 1 3 3 Detach 2 | . . . . . . 2 Swap 13 | . 1 1 . 7 3 1 Drop 6 | . 1 1 . 2 2 . Fire 84 | 21 1 9 . 28 18 7 Melee . | . . . . . . . Ram . | . . . . . . . Kick . | . . . . . . . Crush . | . . . . . . . Escape Stasis 1 | . . . . 1 . . Rewire . | . . . . . . . Trap . | . . . . . . . Miscellaneous . | . . . . . . . Route ------- -11/Scrapyard -10/Materials -10/Mines -10/Exiles -9/Mines -8/Materials -7/Factory History --------- Turn | Location | Event 5 | -11/Scrapyard | Discovered new exit (range 16) 310 | -11/Scrapyard | Entered Materials 311 | -10/Materials | Build established: Mutant 354 | -10/Materials | Discovered new exit (range 10) 386 | -10/Materials | Entered Mines 387 | -10/Mines | Assembled infested the area 938 | -10/Mines | Discovered new exit (range 5) 946 | -10/Mines | Entered Exiles 1002 | -10/Exiles | Met 8R-AWN 1028 | -10/Exiles | Met EX-HEX 1089 | -10/Exiles | Met EX-BIN 1116 | -10/Exiles | Aligned with FarCom system 1117 | -10/Exiles | Given EX-Vault access code 1165 | -10/Exiles | Opened EX-Vault 1195 | -10/Exiles | Found Trap Reconfigurator 1232 | -10/Exiles | Warned to stay clear of 0b10 Research branches 1288 | -10/Exiles | Met EX-DEC 1369 | -10/Exiles | Discovered new exit (range 14) 1392 | -10/Exiles | Left Exiles lab with Trap Reconfigurator 1392 | -10/Exiles | Entered Mines 1490 | -9/Mines | Met a Derelict bent on vengeance 1839 | -9/Mines | Crushed by falling debris 1901 | -9/Mines | Found a damaged Exp. Sensor Array with a note attached 2388 | -9/Mines | Core integrity fell below 50% 2504 | -9/Mines | A weapon hastily lodged in a ceiling crevice suddenly fell to the ground 2607 | -9/Mines | Discovered new exit (range 12) 2622 | -9/Mines | Received a Rocket Launcher from a helpful Derelict 2643 | -9/Mines | Entered Materials 2643 | -8/Materials | Evolved 4 slots: Propulsion x2, Utility x2 3163 | -8/Materials | Discovered new exit (range 3) 3166 | -8/Materials | Entered Factory 3166 | -7/Factory | Evolved 2 slots: Utility x2 3600 | -7/Factory | Self-destructed Last Messages --------------- 03413_ System corrupted: FCS attempts to trigger Slug Cannon. 03413_ System corrupted: Slug Cannon misfires. 03464_ V A0J :SWWWEKOH3VLWJVA2A6 I8Y,S 03501_ System corrupted: Matter fused (-9). 03539_ System corrupted: Lgt. Ion Engine fused. 03553_ W-25 Informer sends out distress signal. 03555_ ALERT: All DSF locations entering lockdown mode. 03557_ Heavy Explosive Trap reprogrammed. 03566_ Manufacturing Mainframe disabled. 03574_ System corrupted: Component data lost. 03581_ Connecting with Garrison Access... 03581_ ALERT: Suspicious activity at Garrison Access F001. Dispatching Investigation squad. 03587_ S-27 Virus destroyed. 03588_ Manufacturing Mainframe disabled. 03591_ S-27 Virus destroyed. 03594_ G-47 Trooper destroyed. 03597_ L-41 Fighter destroyed. 03597_ G-47 Trooper destroyed. 03598_ Y-54 Guardian emerges from the garrison. Map ----- +----------------------------------------------------+ | ??????????????????????????????????????????# """"" | | ??????????????????????????????????????????# | | ??????????????????????????????????????????# ^""""" | | ??????????????????????????????????????????# """"" | | ??????????????????????????????????????????# """"" | | ??????????????????????????????????????????# """"" | | ??????????????????????????????????????????# | | ??????????????????????????????????####+########### | | ??????????????????????????????????# | | ??????????????????????????????????# | | ??????????????????????????????????# | | ??????????????????????????????????# | | ??????????????????????????????????# | | ??????????????????????????????????# ##+####### | | ??????????????????????????????????# # = # | | ??????????????????????????????????# # ! # | | ??????????????????????????????????# + ! # | | ?????????????????????############## # # | | ?????????????????????# # # """ # " | | ?????????????????????#! # # """ # " | | ?????????????????????# " "" # # """ # " | | ?????????????????????# "" # # # | | ?????????????????????#"" " # # """ # " | | ?????????????????????#"" %* % # """ # " | | ?????????????????????#"" % %s g # """ # " | | ?????????????????????#GY @ [% # " #??? | | ?????????????????????#"" # #######??? | | ?????????????????????#"" # #????????? | | ?????????????????????#"" """ # #????????? | | ?????????????????????# # #????????? | | ?????????????????????############## #????????? | | ??????????????????????????????????# #????????? | | ??????????????????????????????????# #????????? | | ??????????????????????????????????# ^#????????? | | ??????????????????????????????????# #????????? | | ??????????????????????????????????# #????????? | | ???????????????????????????????w?? #????????? | | ?????????????????????????????????? /????????? | | ????????????????????????????????? #????????? | | ?????????????????????????????????? #????????? | | ??????????????????????????????????? ?????????? | | ?????????????????????????????????????????????????? | | ?????????????????????????????????????????????????? | | ?????????????????????????????????????????????????? | | ?????????????????????????????????????????????????? | | ?????????????????????????????????????????????????? | | ?????????????????????????????????????????????????? | | ?????????????????????????????????????????????????? | | ?????????????????????????????????????????????????? | | ?????????????????????????????????????????????????? | +----------------------------------------------------+ Best States ------------- Heat Dissipation 34 Energy Generation 10 Energy Capacity 125 Matter Stores 300 Matter Capacity 300 Sight Range 16 Terrain Scan Density 10 Armor Coverage 225 Utility Shielding 66 Evasion (%) 55 Targeting Accuracy 8 Item Schematics ----------------- Slug Cannon | -7/Factory | Scanalyzed Robot Schematics ------------------ None Fabricated ------------ Nothing Alien Tech Used ----------------- None Achievements -------------- None Challenges ------------ None Game ------ Seed ShrapnelAluminumFragment Manual? 0 Play Time 00:20:58 Cumulative 64.1 hours Start 2025.04.30 @ 21:56:27 End 2025.04.30 @ 22:42:08 Sessions 1 Manual Loads 0 Difficulty Rogue Special Mode None Game No. 180 Rogue 180 Adventurer 0 Explorer 0 Win Type - Total 0 Types 0/0/0/0/0/0/0/0/0 Lore% 16 Gallery% 42 Achievement% 33 Wizard Run 0 Options --------- Layout 0 ASCII 0 Keyboard 0 Movement Numpad Keybinds 0 Fullscreen 2 Font 18/Terminus Map View 76x50 Zoom Use 0% Tactical HUD 1 Map Filters NONE Filters NONE Steam 1 RUN: 3cc20f46-bca6-4504-8fcb-59ab6b2180d8